[Event "Titled Tuesday Blitz November 14 Early 2023"]
[White "Babayeva, Nasrin"]
[Black "KatakuriDono"]
[WhiteFideId "13416626"]
[WhiteElo "1852"]
[BlackElo "2345"]
[Result "0-1"]
[Round "9"]
[TimeControl "180+1"]
[Date "2023.11.14"]
[WhiteClock "0:01:03"]
[BlackClock "0:01:34"]
[Board "136"]

1. e4 {[%clk 0:03:00]}  e5 {[%clk 0:02:59]} 2. Nf3 {[%clk 0:02:46]}  Nc6 {[%clk 0:02:59]} 3. d3 {[%clk 0:02:44]}  Nf6 {[%clk 0:02:59]} 4. c3 {[%clk 0:02:44]}  d5 {[%clk 0:02:57]} 5. Nbd2 {[%clk 0:02:44]}  Be7 {[%clk 0:02:53]} 6. b4 {[%clk 0:02:42]}  a6 {[%clk 0:02:51]} 7. Be2 {[%clk 0:02:39]}  d4 {[%clk 0:02:49]} 8. cxd4 {[%clk 0:02:36]}  exd4 {[%clk 0:02:46]} 9. a3 {[%clk 0:02:35]}  O-O {[%clk 0:02:42]} 10. O-O {[%clk 0:02:32]}  Re8 {[%clk 0:02:37]} 11. Bb2 {[%clk 0:02:31]}  Bd6 {[%clk 0:02:17]} 12. Nb3 {[%clk 0:02:24]}  Nh5 {[%clk 0:01:57]} 13. Nfxd4 {[%clk 0:02:16]}  Nf4 {[%clk 0:01:57]} 14. Nxc6 {[%clk 0:02:09]}  bxc6 {[%clk 0:01:54]} 15. Bf3 {[%clk 0:01:35]}  Qg5 {[%clk 0:01:48]} 16. Qd2 {[%clk 0:01:17]}  Be6 {[%clk 0:01:35]} 17. Nd4 {[%clk 0:01:03]}  Nh3+ {[%clk 0:01:34]} 0-1


[Site "https://www.chess.com"]

[Event "Titled Tuesday Blitz November 14 Early 2023"]
[White "thisjuan"]
[Black "Grossboss19"]
[WhiteElo "2194"]
[BlackElo "2476"]
[Result "1/2-1/2"]
[Round "9"]
[TimeControl "180+1"]
[Date "2023.11.14"]
[WhiteClock "0:00:04"]
[BlackClock "0:00:11"]
[Board "137"]

1. c4 {[%clk 0:02:56]}  e6 {[%clk 0:02:58]} 2. g3 {[%clk 0:02:56]}  d5 {[%clk 0:02:50]} 3. Bg2 {[%clk 0:02:56]}  c5 {[%clk 0:02:41]} 4. Nf3 {[%clk 0:02:56]}  d4 {[%clk 0:02:37]} 5. O-O {[%clk 0:02:56]}  Nc6 {[%clk 0:02:33]} 6. e3 {[%clk 0:02:56]}  Nf6 {[%clk 0:02:25]} 7. exd4 {[%clk 0:02:56]}  Nxd4 {[%clk 0:02:20]} 8. Nxd4 {[%clk 0:02:54]}  Qxd4 {[%clk 0:02:20]} 9. d3 {[%clk 0:02:54]}  Be7 {[%clk 0:02:10]} 10. Nc3 {[%clk 0:02:54]}  O-O {[%clk 0:02:05]} 11. Nb5 {[%clk 0:02:44]}  Qd8 {[%clk 0:02:04]} 12. Bf4 {[%clk 0:02:43]}  Ne8 {[%clk 0:01:56]} 13. Qd2 {[%clk 0:02:17]}  a6 {[%clk 0:01:53]} 14. Nc3 {[%clk 0:02:13]}  Bd6 {[%clk 0:01:51]} 15. Rad1 {[%clk 0:02:11]}  Qc7 {[%clk 0:01:46]} 16. Bxd6 {[%clk 0:02:09]}  Nxd6 {[%clk 0:01:47]} 17. b3 {[%clk 0:02:06]}  e5 {[%clk 0:01:38]} 18. Nd5 {[%clk 0:02:00]}  Qd8 {[%clk 0:01:34]} 19. f4 {[%clk 0:01:56]}  exf4 {[%clk 0:01:28]} 20. Qxf4 {[%clk 0:01:52]}  Be6 {[%clk 0:01:25]} 21. d4 {[%clk 0:01:48]}  Bxd5 {[%clk 0:01:18]} 22. Bxd5 {[%clk 0:01:46]}  cxd4 {[%clk 0:01:14]} 23. Qxd4 {[%clk 0:01:41]}  Qc7 {[%clk 0:01:09]} 24. Rfe1 {[%clk 0:01:19]}  Rfe8 {[%clk 0:01:04]} 25. Rxe8+ {[%clk 0:01:14]}  Rxe8 {[%clk 0:01:02]} 26. Bg2 {[%clk 0:01:12]}  Nf5 {[%clk 0:00:55]} 27. Qd7 {[%clk 0:01:03]}  Qxd7 {[%clk 0:00:36]} 28. Rxd7 {[%clk 0:01:02]}  b5 {[%clk 0:00:35]} 29. Bd5 {[%clk 0:00:55]}  Ne7 {[%clk 0:00:26]} 30. Bb7 {[%clk 0:00:44]}  bxc4 {[%clk 0:00:14]} 31. bxc4 {[%clk 0:00:43]}  Kf8 {[%clk 0:00:13]} 32. c5 {[%clk 0:00:43]}  Ng6 {[%clk 0:00:11]} 33. c6 {[%clk 0:00:41]}  Ne5 {[%clk 0:00:11]} 34. Rd5 {[%clk 0:00:38]}  Nxc6 {[%clk 0:00:10]} 35. Bxc6 {[%clk 0:00:38]}  Re2 {[%clk 0:00:10]} 36. a4 {[%clk 0:00:37]}  Re6 {[%clk 0:00:08]} 37. Bd7 {[%clk 0:00:36]}  Rb6 {[%clk 0:00:08]} 38. a5 {[%clk 0:00:33]}  Rf6 {[%clk 0:00:08]} 39. Rc5 {[%clk 0:00:31]}  Ke7 {[%clk 0:00:08]} 40. Bc8 {[%clk 0:00:30]}  Kd6 {[%clk 0:00:07]} 41. Rc2 {[%clk 0:00:25]}  Kd5 {[%clk 0:00:07]} 42. Bb7+ {[%clk 0:00:24]}  Kd4 {[%clk 0:00:07]} 43. Rb2 {[%clk 0:00:22]}  Kc5 {[%clk 0:00:07]} 44. Kg2 {[%clk 0:00:19]}  g6 {[%clk 0:00:07]} 45. Rf2 {[%clk 0:00:17]}  Rxf2+ {[%clk 0:00:06]} 46. Kxf2 {[%clk 0:00:17]}  Kb5 {[%clk 0:00:07]} 47. Ke3 {[%clk 0:00:17]}  Kxa5 {[%clk 0:00:08]} 48. Kd4 {[%clk 0:00:17]}  Kb6 {[%clk 0:00:06]} 49. Bd5 {[%clk 0:00:16]}  f6 {[%clk 0:00:06]} 50. Bg8 {[%clk 0:00:16]}  h6 {[%clk 0:00:05]} 51. Kc4 {[%clk 0:00:16]}  Kc6 {[%clk 0:00:05]} 52. Bf7 {[%clk 0:00:16]}  g5 {[%clk 0:00:05]} 53. g4 {[%clk 0:00:16]}  Kd6 {[%clk 0:00:04]} 54. Kb4 {[%clk 0:00:15]}  Ke5 {[%clk 0:00:04]} 55. Ka5 {[%clk 0:00:08]}  Kf4 {[%clk 0:00:04]} 56. Be6 {[%clk 0:00:08]}  Ke5 {[%clk 0:00:04]} 57. Bc8 {[%clk 0:00:07]}  Kf4 {[%clk 0:00:04]} 58. Kxa6 {[%clk 0:00:07]}  Kf3 {[%clk 0:00:05]} 59. Kb5 {[%clk 0:00:02]}  Kg2 {[%clk 0:00:05]} 60. Kc5 {[%clk 0:00:03]}  Kxh2 {[%clk 0:00:06]} 61. Kd6 {[%clk 0:00:03]}  Kg3 {[%clk 0:00:06]} 62. Ke7 {[%clk 0:00:03]}  Kh4 {[%clk 0:00:07]} 63. Kxf6 {[%clk 0:00:04]}  h5 {[%clk 0:00:08]} 64. gxh5 {[%clk 0:00:03]}  Kxh5 {[%clk 0:00:09]} 65. Bf5 {[%clk 0:00:03]}  Kh4 {[%clk 0:00:09]} 66. Ke5 {[%clk 0:00:02]}  Kg3 {[%clk 0:00:09]} 67. Kf6 {[%clk 0:00:02]}  Kf4 {[%clk 0:00:10]} 68. Bg6 {[%clk 0:00:02]}  g4 {[%clk 0:00:10]} 69. Bd3 {[%clk 0:00:01]}  g3 {[%clk 0:00:09]} 70. Bf1 {[%clk 0:00:02]}  Kf3 {[%clk 0:00:09]} 71. Bh3 {[%clk 0:00:02]}  Kf4 {[%clk 0:00:09]} 72. Bg2 {[%clk 0:00:02]}  Ke3 {[%clk 0:00:09]} 73. Ba8 {[%clk 0:00:03]}  Kf4 {[%clk 0:00:09]} 74. Bg2 {[%clk 0:00:04]}  Ke3 {[%clk 0:00:10]} 75. Ba8 {[%clk 0:00:04]}  Kf2 {[%clk 0:00:11]} 76. Bb7 {[%clk 0:00:04]}  g2 {[%clk 0:00:11]} 77. Bxg2 {[%clk 0:00:04]} 1/2-1/2


[Site "https://www.chess.com"]

[Event "Titled Tuesday Blitz November 14 Early 2023"]
[White "Skibbe, Willi"]
[Black "Balla, Tamas-Kristof"]
[WhiteFideId "4682190"]
[BlackFideId "1208497"]
[WhiteElo "2233"]
[BlackElo "2400"]
[Result "1-0"]
[Round "9"]
[TimeControl "180+1"]
[Date "2023.11.14"]
[WhiteClock "0:00:11"]
[BlackClock "0:01:19"]
[Board "138"]

1. e4 {[%clk 0:03:00]}  c5 {[%clk 0:02:58]} 2. c3 {[%clk 0:02:58]}  Nf6 {[%clk 0:02:58]} 3. e5 {[%clk 0:02:58]}  Nd5 {[%clk 0:02:58]} 4. Nf3 {[%clk 0:02:58]}  Nc6 {[%clk 0:02:58]} 5. Bc4 {[%clk 0:02:57]}  Nb6 {[%clk 0:02:57]} 6. Bb3 {[%clk 0:02:57]}  d5 {[%clk 0:02:49]} 7. exd6 {[%clk 0:02:56]}  Qxd6 {[%clk 0:02:49]} 8. O-O {[%clk 0:02:56]}  g6 {[%clk 0:02:40]} 9. d4 {[%clk 0:01:32]}  cxd4 {[%clk 0:02:38]} 10. Ng5 {[%clk 0:01:32]}  e6 {[%clk 0:02:32]} 11. Ne4 {[%clk 0:01:25]}  Qd8 {[%clk 0:02:27]} 12. Bg5 {[%clk 0:01:19]}  Be7 {[%clk 0:02:26]} 13. Bh6 {[%clk 0:01:19]}  e5 {[%clk 0:02:19]} 14. Qf3 {[%clk 0:01:17]}  Bf5 {[%clk 0:02:18]} 15. Ng3 {[%clk 0:01:04]}  Qd7 {[%clk 0:02:04]} 16. Nxf5 {[%clk 0:00:43]}  Qxf5 {[%clk 0:02:05]} 17. Qxf5 {[%clk 0:00:35]}  gxf5 {[%clk 0:02:06]} 18. cxd4 {[%clk 0:00:35]}  Nxd4 {[%clk 0:02:05]} 19. f4 {[%clk 0:00:22]}  e4 {[%clk 0:02:01]} 20. Bg7 {[%clk 0:00:20]}  Nxb3 {[%clk 0:02:00]} 21. axb3 {[%clk 0:00:18]}  Rg8 {[%clk 0:02:00]} 22. Be5 {[%clk 0:00:18]}  O-O-O {[%clk 0:01:58]} 23. Rc1+ {[%clk 0:00:17]}  Kd7 {[%clk 0:01:55]} 24. Rxa7 {[%clk 0:00:17]}  Bc5+ {[%clk 0:01:55]} 25. Rxc5 {[%clk 0:00:15]}  Ke8 {[%clk 0:01:52]} 26. Rc1 {[%clk 0:00:13]}  e3 {[%clk 0:01:52]} 27. Rxb7 {[%clk 0:00:12]}  e2 {[%clk 0:01:49]} 28. Nc3 {[%clk 0:00:10]}  Nd5 {[%clk 0:01:46]} 29. Nxe2 {[%clk 0:00:10]}  Ne3 {[%clk 0:01:46]} 30. g3 {[%clk 0:00:09]}  f6 {[%clk 0:01:43]} 31. Rcc7 {[%clk 0:00:10]}  Rd1+ {[%clk 0:01:38]} 32. Kf2 {[%clk 0:00:10]}  Ng4+ {[%clk 0:01:38]} 33. Kg2 {[%clk 0:00:09]}  fxe5 {[%clk 0:01:39]} 34. Re7+ {[%clk 0:00:07]}  Kd8 {[%clk 0:01:38]} 35. fxe5 {[%clk 0:00:05]}  Rd2 {[%clk 0:01:38]} 36. Kf3 {[%clk 0:00:05]}  Nxh2+ {[%clk 0:01:33]} 37. Ke3 {[%clk 0:00:05]}  Rd5 {[%clk 0:01:30]} 38. Nf4 {[%clk 0:00:05]}  Ng4+ {[%clk 0:01:30]} 39. Kf3 {[%clk 0:00:05]}  Rxe5 {[%clk 0:01:29]} 40. Ne6+ {[%clk 0:00:03]}  Rxe6 {[%clk 0:01:21]} 41. Rxe6 {[%clk 0:00:04]}  Nh2+ {[%clk 0:01:19]} 42. Kg2 {[%clk 0:00:05]}  Ng4 {[%clk 0:01:20]} 43. Rb8+ {[%clk 0:00:05]}  Kd7 {[%clk 0:01:20]} 44. Rxg8 {[%clk 0:00:06]}  Kxe6 {[%clk 0:01:21]} 45. Rg7 {[%clk 0:00:05]}  Nf6 {[%clk 0:01:21]} 46. Ra7 {[%clk 0:00:04]}  h5 {[%clk 0:01:21]} 47. b4 {[%clk 0:00:05]}  Kd5 {[%clk 0:01:16]} 48. Kh3 {[%clk 0:00:05]}  Kc4 {[%clk 0:01:16]} 49. Kh4 {[%clk 0:00:06]}  Ne4 {[%clk 0:01:15]} 50. Rb7 {[%clk 0:00:04]}  Nd6 {[%clk 0:01:12]} 51. Rb6 {[%clk 0:00:04]}  Nb5 {[%clk 0:01:13]} 52. Kxh5 {[%clk 0:00:04]}  Kxb4 {[%clk 0:01:13]} 53. Rxb5+ {[%clk 0:00:04]}  Kxb5 {[%clk 0:01:13]} 54. Kg5 {[%clk 0:00:05]}  Kb4 {[%clk 0:01:14]} 55. Kxf5 {[%clk 0:00:06]}  Kb3 {[%clk 0:01:15]} 56. g4 {[%clk 0:00:06]}  Kxb2 {[%clk 0:01:16]} 57. g5 {[%clk 0:00:07]}  Kc3 {[%clk 0:01:17]} 58. g6 {[%clk 0:00:08]}  Kd4 {[%clk 0:01:18]} 59. g7 {[%clk 0:00:08]}  Kd5 {[%clk 0:01:18]} 60. g8=Q+ {[%clk 0:00:09]}  Kd6 {[%clk 0:01:19]} 61. Qe6+ {[%clk 0:00:10]}  Kc7 {[%clk 0:01:20]} 62. Qd5 {[%clk 0:00:10]}  Kb6 {[%clk 0:01:20]} 63. Qc4 {[%clk 0:00:11]}  Ka5 {[%clk 0:01:19]} 64. Qb3 {[%clk 0:00:11]} 1-0


[Site "https://www.chess.com"]

[Event "Titled Tuesday Blitz November 14 Early 2023"]
[White "Todev, Simeon"]
[Black "Limontaite, Simona"]
[WhiteFideId "2925133"]
[BlackFideId "12802506"]
[WhiteElo "2347"]
[BlackElo "2231"]
[Result "0-1"]
[Round "9"]
[TimeControl "180+1"]
[Date "2023.11.14"]
[WhiteClock "0:00:26"]
[BlackClock "0:01:28"]
[Board "139"]

1. e4 {[%clk 0:02:57]}  g6 {[%clk 0:02:57]} 2. Nf3 {[%clk 0:02:56]}  Bg7 {[%clk 0:02:56]} 3. d4 {[%clk 0:02:57]}  d6 {[%clk 0:02:57]} 4. Be3 {[%clk 0:02:57]}  e6 {[%clk 0:02:54]} 5. Nc3 {[%clk 0:02:48]}  a6 {[%clk 0:02:54]} 6. Bd3 {[%clk 0:02:46]}  Ne7 {[%clk 0:02:53]} 7. h4 {[%clk 0:02:47]}  h6 {[%clk 0:02:50]} 8. Qd2 {[%clk 0:02:45]}  Nd7 {[%clk 0:02:47]} 9. g4 {[%clk 0:02:45]}  b5 {[%clk 0:02:44]} 10. O-O-O {[%clk 0:02:44]}  Bb7 {[%clk 0:02:44]} 11. Ne2 {[%clk 0:02:42]}  Nb6 {[%clk 0:02:38]} 12. Ng3 {[%clk 0:02:34]}  Nc4 {[%clk 0:02:34]} 13. Bxc4 {[%clk 0:02:34]}  bxc4 {[%clk 0:02:34]} 14. Ne1 {[%clk 0:02:27]}  Qd7 {[%clk 0:02:30]} 15. f4 {[%clk 0:02:25]}  O-O-O {[%clk 0:02:28]} 16. Rf1 {[%clk 0:02:11]}  f5 {[%clk 0:02:23]} 17. gxf5 {[%clk 0:02:08]}  gxf5 {[%clk 0:02:23]} 18. e5 {[%clk 0:02:09]}  dxe5 {[%clk 0:02:11]} 19. dxe5 {[%clk 0:01:52]}  Qxd2+ {[%clk 0:02:08]} 20. Bxd2 {[%clk 0:01:52]}  Nd5 {[%clk 0:02:05]} 21. Nh5 {[%clk 0:01:52]}  Bf8 {[%clk 0:01:57]} 22. Nf3 {[%clk 0:01:50]}  Bc5 {[%clk 0:01:57]} 23. Rde1 {[%clk 0:01:43]}  Rhg8 {[%clk 0:01:56]} 24. Nf6 {[%clk 0:01:30]}  Rg3 {[%clk 0:01:49]} 25. Nh5 {[%clk 0:01:02]}  Rg2 {[%clk 0:01:44]} 26. Ng1 {[%clk 0:00:51]}  Rdg8 {[%clk 0:01:37]} 27. Ne2 {[%clk 0:00:48]}  Ne3 {[%clk 0:01:32]} 28. Bxe3 {[%clk 0:00:29]}  Bxe3+ {[%clk 0:01:33]} 29. Kd1 {[%clk 0:00:26]}  Rd8+ {[%clk 0:01:28]} 0-1


[Site "https://www.chess.com"]

[Event "Titled Tuesday Blitz November 14 Early 2023"]
[White "Silvestre, Christian"]
[Black "Manon-og, Ramon Jr."]
[WhiteFideId "30956269"]
[BlackFideId "5200776"]
[WhiteElo "2230"]
[BlackElo "2325"]
[Result "0-1"]
[Round "9"]
[TimeControl "180+1"]
[Date "2023.11.14"]
[WhiteClock "0:02:29"]
[BlackClock "0:02:44"]
[Board "140"]

1. e4 {[%clk 0:02:55]}  c5 {[%clk 0:02:59]} 2. c3 {[%clk 0:02:54]}  Nf6 {[%clk 0:02:58]} 3. e5 {[%clk 0:02:54]}  Nd5 {[%clk 0:02:58]} 4. d4 {[%clk 0:02:53]}  cxd4 {[%clk 0:02:59]} 5. Nf3 {[%clk 0:02:51]}  Nc6 {[%clk 0:02:58]} 6. cxd4 {[%clk 0:02:51]}  e6 {[%clk 0:02:59]} 7. Bd3 {[%clk 0:02:42]}  d6 {[%clk 0:02:59]} 8. Qe2 {[%clk 0:02:41]}  Qa5+ {[%clk 0:02:53]} 9. Nbd2 {[%clk 0:02:35]}  Nf4 {[%clk 0:02:45]} 10. Qe3 {[%clk 0:02:29]}  Nxg2+ {[%clk 0:02:44]} 0-1


[Site "https://www.chess.com"]

[Event "Titled Tuesday Blitz November 14 Early 2023"]
[White "Josgar05"]
[Black "Cardenas Carbajal, Nilson"]
[BlackFideId "8401128"]
[WhiteElo "2303"]
[BlackElo "2179"]
[Result "1-0"]
[Round "9"]
[TimeControl "180+1"]
[Date "2023.11.14"]
[WhiteClock "0:01:32"]
[BlackClock "0:00:00"]
[Board "142"]

1. Nf3 {[%clk 0:03:00]}  d5 {[%clk 0:02:56]} 2. d4 {[%clk 0:03:00]}  Nf6 {[%clk 0:02:53]} 3. c4 {[%clk 0:02:59]}  c6 {[%clk 0:02:50]} 4. Nc3 {[%clk 0:02:54]}  e6 {[%clk 0:02:46]} 5. Bg5 {[%clk 0:02:54]}  Be7 {[%clk 0:02:44]} 6. e3 {[%clk 0:02:53]}  Nbd7 {[%clk 0:02:42]} 7. Bd3 {[%clk 0:02:53]}  O-O {[%clk 0:02:41]} 8. O-O {[%clk 0:02:51]}  dxc4 {[%clk 0:02:42]} 9. Bxc4 {[%clk 0:02:52]}  b5 {[%clk 0:02:42]} 10. Bd3 {[%clk 0:02:52]}  a6 {[%clk 0:02:42]} 11. a3 {[%clk 0:02:52]}  c5 {[%clk 0:02:42]} 12. Qe2 {[%clk 0:02:50]}  Bb7 {[%clk 0:02:42]} 13. Rad1 {[%clk 0:02:50]}  Qb6 {[%clk 0:02:38]} 14. Bb1 {[%clk 0:02:49]}  Rac8 {[%clk 0:02:29]} 15. dxc5 {[%clk 0:02:49]}  Nxc5 {[%clk 0:02:26]} 16. b4 {[%clk 0:02:41]}  Ncd7 {[%clk 0:02:06]} 17. Rxd7 {[%clk 0:02:38]}  Nxd7 {[%clk 0:01:50]} 18. Bxe7 {[%clk 0:02:35]}  Rxc3 {[%clk 0:01:19]} 19. Bxf8 {[%clk 0:02:34]}  Kxf8 {[%clk 0:01:09]} 20. Qd2 {[%clk 0:02:33]}  Qc6 {[%clk 0:01:06]} 21. Be4 {[%clk 0:02:24]}  Qxe4 {[%clk 0:00:57]} 22. Qxc3 {[%clk 0:02:23]}  Nf6 {[%clk 0:00:47]} 23. Rd1 {[%clk 0:02:21]}  Bd5 {[%clk 0:00:25]} 24. Qc8+ {[%clk 0:02:14]}  Ke7 {[%clk 0:00:19]} 25. Qc7+ {[%clk 0:02:13]}  Nd7 {[%clk 0:00:18]} 26. Rc1 {[%clk 0:02:10]}  Bc4 {[%clk 0:00:13]} 27. Nd4 {[%clk 0:02:04]}  Bd5 {[%clk 0:00:10]} 28. Qg3 {[%clk 0:01:55]}  Nf6 {[%clk 0:00:08]} 29. Rc7+ {[%clk 0:01:50]}  Nd7 {[%clk 0:00:08]} 30. h3 {[%clk 0:01:48]}  g6 {[%clk 0:00:07]} 31. Kh2 {[%clk 0:01:47]}  f5 {[%clk 0:00:06]} 32. Qg5+ {[%clk 0:01:43]}  Kd6 {[%clk 0:00:00]} 33. Rc1 {[%clk 0:01:32]} 1-0


[Site "https://www.chess.com"]

[Event "Titled Tuesday Blitz November 14 Early 2023"]
[White "Tuleyeva-Aketayeva, Dana"]
[Black "Ismayilova, Khanim"]
[WhiteFideId "13701932"]
[BlackFideId "13429019"]
[WhiteElo "2300"]
[BlackElo "2157"]
[Result "1-0"]
[Round "9"]
[TimeControl "180+1"]
[Date "2023.11.14"]
[WhiteClock "0:00:10"]
[BlackClock "0:00:15"]
[Board "143"]

1. d4 {[%clk 0:03:00]}  d5 {[%clk 0:02:59]} 2. Nf3 {[%clk 0:03:00]}  Nf6 {[%clk 0:02:58]} 3. g3 {[%clk 0:02:58]}  g6 {[%clk 0:02:54]} 4. Bg2 {[%clk 0:02:57]}  Bg7 {[%clk 0:02:54]} 5. O-O {[%clk 0:02:56]}  O-O {[%clk 0:02:54]} 6. c3 {[%clk 0:02:57]}  c6 {[%clk 0:02:50]} 7. Bf4 {[%clk 0:02:56]}  Bg4 {[%clk 0:02:50]} 8. Nbd2 {[%clk 0:02:52]}  Nbd7 {[%clk 0:02:50]} 9. Ne5 {[%clk 0:02:49]}  Nxe5 {[%clk 0:02:46]} 10. Bxe5 {[%clk 0:02:49]}  Rc8 {[%clk 0:02:33]} 11. Re1 {[%clk 0:02:45]}  Bh6 {[%clk 0:02:29]} 12. Qc2 {[%clk 0:02:38]}  Nd7 {[%clk 0:02:25]} 13. e4 {[%clk 0:02:11]}  Nxe5 {[%clk 0:02:22]} 14. dxe5 {[%clk 0:02:11]}  dxe4 {[%clk 0:02:15]} 15. Nxe4 {[%clk 0:02:08]}  Bf5 {[%clk 0:02:15]} 16. Rad1 {[%clk 0:02:06]}  Qc7 {[%clk 0:02:13]} 17. Qb3 {[%clk 0:02:02]}  Bxe4 {[%clk 0:02:11]} 18. Rxe4 {[%clk 0:01:57]}  Rcd8 {[%clk 0:02:10]} 19. e6 {[%clk 0:01:42]}  Rxd1+ {[%clk 0:01:55]} 20. Qxd1 {[%clk 0:01:42]}  Bg7 {[%clk 0:01:45]} 21. Qd7 {[%clk 0:01:23]}  Qd6 {[%clk 0:01:34]} 22. Bh3 {[%clk 0:00:55]}  Rd8 {[%clk 0:01:10]} 23. exf7+ {[%clk 0:00:32]}  Kf8 {[%clk 0:00:58]} 24. Qxd6 {[%clk 0:00:19]}  Rxd6 {[%clk 0:00:59]} 25. Be6 {[%clk 0:00:19]}  Rd2 {[%clk 0:00:48]} 26. Rb4 {[%clk 0:00:17]}  b6 {[%clk 0:00:42]} 27. Rh4 {[%clk 0:00:17]}  Rxb2 {[%clk 0:00:33]} 28. Rxh7 {[%clk 0:00:17]}  Rc2 {[%clk 0:00:31]} 29. c4 {[%clk 0:00:16]}  Re2 {[%clk 0:00:30]} 30. Bd7 {[%clk 0:00:15]}  Kxf7 {[%clk 0:00:23]} 31. Bxc6 {[%clk 0:00:14]}  Kf8 {[%clk 0:00:20]} 32. Rh4 {[%clk 0:00:14]}  Bf6 {[%clk 0:00:18]} 33. Rg4 {[%clk 0:00:13]}  g5 {[%clk 0:00:17]} 34. h4 {[%clk 0:00:11]}  gxh4 {[%clk 0:00:15]} 35. gxh4 {[%clk 0:00:10]}  Rxa2 {[%clk 0:00:15]} 36. Bd5 {[%clk 0:00:11]}  Ra1+ {[%clk 0:00:15]} 37. Kg2 {[%clk 0:00:10]}  Re1 {[%clk 0:00:15]} 38. Rg8# {[%clk 0:00:10]} 1-0


[Site "https://www.chess.com"]

[Event "Titled Tuesday Blitz November 14 Early 2023"]
[White "LeoWin2012"]
[Black "Dahlgren, James Allen"]
[BlackFideId "22256873"]
[WhiteElo "2279"]
[BlackElo "2142"]
[Result "0-1"]
[Round "9"]
[TimeControl "180+1"]
[Date "2023.11.14"]
[WhiteClock "0:02:49"]
[BlackClock "0:02:47"]
[Board "146"]

1. a4 {[%clk 0:03:00]}  d5 {[%clk 0:02:59]} 2. Na3 {[%clk 0:02:59]}  e5 {[%clk 0:02:58]} 3. c3 {[%clk 0:03:00]}  c5 {[%clk 0:02:59]} 4. Nc2 {[%clk 0:02:59]}  d4 {[%clk 0:02:58]} 5. c4 {[%clk 0:02:59]}  f5 {[%clk 0:02:58]} 6. d3 {[%clk 0:02:59]}  Nf6 {[%clk 0:02:58]} 7. Bd2 {[%clk 0:02:57]}  a5 {[%clk 0:02:58]} 8. b3 {[%clk 0:02:56]}  Nc6 {[%clk 0:02:58]} 9. Na3 {[%clk 0:02:56]}  Bd6 {[%clk 0:02:57]} 10. Nb5 {[%clk 0:02:56]}  O-O {[%clk 0:02:56]} 11. Nf3 {[%clk 0:02:54]}  e4 {[%clk 0:02:55]} 12. dxe4 {[%clk 0:02:52]}  fxe4 {[%clk 0:02:56]} 13. Ng5 {[%clk 0:02:52]}  h6 {[%clk 0:02:55]} 14. Nh3 {[%clk 0:02:52]}  Bxh3 {[%clk 0:02:52]} 15. gxh3 {[%clk 0:02:51]}  e3 {[%clk 0:02:50]} 16. fxe3 {[%clk 0:02:51]}  Ne4 {[%clk 0:02:49]} 17. Bg2 {[%clk 0:02:49]}  Qh4# {[%clk 0:02:47]} 0-1


[Site "https://www.chess.com"]

[Event "Titled Tuesday Blitz November 14 Early 2023"]
[White "missponyo10"]
[Black "dumbernugget"]
[WhiteElo "2132"]
[BlackElo "1902"]
[Result "1-0"]
[Round "9"]
[TimeControl "180+1"]
[Date "2023.11.14"]
[WhiteClock "0:01:32"]
[BlackClock "0:01:33"]
[Board "150"]

1. e4 {[%clk 0:03:00]}  c5 {[%clk 0:02:56]} 2. Nf3 {[%clk 0:03:01]}  d6 {[%clk 0:02:56]} 3. d4 {[%clk 0:03:01]}  cxd4 {[%clk 0:02:56]} 4. Nxd4 {[%clk 0:03:02]}  Nf6 {[%clk 0:02:56]} 5. Nc3 {[%clk 0:03:02]}  g6 {[%clk 0:02:56]} 6. Be3 {[%clk 0:02:58]}  Bg7 {[%clk 0:02:55]} 7. f3 {[%clk 0:02:57]}  O-O {[%clk 0:02:55]} 8. Bc4 {[%clk 0:02:56]}  Nc6 {[%clk 0:02:56]} 9. O-O {[%clk 0:02:56]}  Bd7 {[%clk 0:02:55]} 10. Kh1 {[%clk 0:02:55]}  Rc8 {[%clk 0:02:51]} 11. Bb3 {[%clk 0:02:55]}  a6 {[%clk 0:02:41]} 12. Nxc6 {[%clk 0:02:52]}  Bxc6 {[%clk 0:02:39]} 13. Qd2 {[%clk 0:02:51]}  b5 {[%clk 0:02:39]} 14. a3 {[%clk 0:02:51]}  a5 {[%clk 0:02:39]} 15. Rad1 {[%clk 0:02:46]}  b4 {[%clk 0:02:39]} 16. axb4 {[%clk 0:02:45]}  axb4 {[%clk 0:02:40]} 17. Na2 {[%clk 0:02:45]}  Nd7 {[%clk 0:02:20]} 18. Rb1 {[%clk 0:02:40]}  Nc5 {[%clk 0:02:16]} 19. Bc4 {[%clk 0:02:33]}  Na4 {[%clk 0:02:08]} 20. Nxb4 {[%clk 0:02:19]}  Nxb2 {[%clk 0:01:53]} 21. Nxc6 {[%clk 0:02:11]}  Rxc6 {[%clk 0:01:52]} 22. Bb3 {[%clk 0:02:04]}  Nc4 {[%clk 0:01:50]} 23. Bxc4 {[%clk 0:01:59]}  Rxc4 {[%clk 0:01:50]} 24. Qd3 {[%clk 0:01:47]}  Qc7 {[%clk 0:01:48]} 25. Rfc1 {[%clk 0:01:46]}  Rc3 {[%clk 0:01:45]} 26. Qd2 {[%clk 0:01:41]}  Rc8 {[%clk 0:01:45]} 27. h3 {[%clk 0:01:32]}  Rxc2 {[%clk 0:01:44]} 28. Rxc2 {[%clk 0:01:32]}  Qxc2 {[%clk 0:01:42]} 29. Qxc2 {[%clk 0:01:32]}  Rxc2 {[%clk 0:01:33]} 30. Rb8+ {[%clk 0:01:32]} 1-0


[Site "https://www.chess.com"]

[Event "Titled Tuesday Blitz November 14 Early 2023"]
[White "DonCiao"]
[Black "Clawitter, Craig"]
[BlackFideId "2023105"]
[WhiteElo "2113"]
[BlackElo "2287"]
[Result "1-0"]
[Round "9"]
[TimeControl "180+1"]
[Date "2023.11.14"]
[WhiteClock "0:00:35"]
[BlackClock "0:00:07"]
[Board "152"]

1. c4 {[%clk 0:03:00]}  e6 {[%clk 0:02:54]} 2. g3 {[%clk 0:03:00]}  d5 {[%clk 0:02:53]} 3. Bg2 {[%clk 0:03:00]}  Nf6 {[%clk 0:02:54]} 4. Nf3 {[%clk 0:03:00]}  Be7 {[%clk 0:02:54]} 5. O-O {[%clk 0:03:00]}  O-O {[%clk 0:02:55]} 6. b3 {[%clk 0:03:00]}  d4 {[%clk 0:02:54]} 7. e3 {[%clk 0:02:58]}  c5 {[%clk 0:02:55]} 8. exd4 {[%clk 0:02:55]}  cxd4 {[%clk 0:02:54]} 9. Re1 {[%clk 0:02:54]}  Nc6 {[%clk 0:02:53]} 10. Ba3 {[%clk 0:02:51]}  Re8 {[%clk 0:02:30]} 11. Bxe7 {[%clk 0:02:49]}  Rxe7 {[%clk 0:02:31]} 12. d3 {[%clk 0:02:46]}  e5 {[%clk 0:02:27]} 13. b4 {[%clk 0:02:42]}  Nxb4 {[%clk 0:02:14]} 14. Nxe5 {[%clk 0:02:35]}  Qa5 {[%clk 0:01:45]} 15. Nf3 {[%clk 0:02:19]}  Rxe1+ {[%clk 0:01:34]} 16. Nxe1 {[%clk 0:02:18]}  Bf5 {[%clk 0:01:21]} 17. Bxb7 {[%clk 0:02:09]}  Re8 {[%clk 0:01:07]} 18. Kg2 {[%clk 0:01:51]}  h5 {[%clk 0:00:23]} 19. h3 {[%clk 0:01:42]}  Qe5 {[%clk 0:00:20]} 20. Nf3 {[%clk 0:01:38]}  Qc7 {[%clk 0:00:18]} 21. Bd5 {[%clk 0:01:13]}  Nfxd5 {[%clk 0:00:17]} 22. cxd5 {[%clk 0:01:12]}  Nxd3 {[%clk 0:00:16]} 23. Nxd4 {[%clk 0:01:09]}  Qe5 {[%clk 0:00:14]} 24. Nf3 {[%clk 0:01:04]}  Be4 {[%clk 0:00:13]} 25. Qa4 {[%clk 0:00:55]}  Qxd5 {[%clk 0:00:11]} 26. Qxe8+ {[%clk 0:00:50]}  Kh7 {[%clk 0:00:12]} 27. Nd2 {[%clk 0:00:47]}  Nc5 {[%clk 0:00:09]} 28. Nxe4 {[%clk 0:00:44]}  Nxe4 {[%clk 0:00:08]} 29. Re1 {[%clk 0:00:39]}  Ng5 {[%clk 0:00:08]} 30. Qe3 {[%clk 0:00:36]}  Nxf3 {[%clk 0:00:07]} 31. Qxf3 {[%clk 0:00:35]} 1-0


[Site "https://www.chess.com"]